Cogmind - Beta 15 @@@ ROGUE MODE // 2025.08.07 @ 21:43:02 Player: Endlessblaze Result: Destroyed by G-34 Mercenary with Small Laser Performance ------------- Evolutions (0) 0 Regions Visited (1) 200 Robots Destroyed (6) 30 Value Destroyed (70) 70 Prototype IDs (0) 0 Alien Tech Used (0) 0 Bonus (0) 0 TOTAL SCORE: 300 Bonus ------- None Cogmind --------- Core Integrity 0/250 Matter 290/300 Energy 83/100 System Corruption 0% Temperature Cool (6) Movement Hovering (80) Location -10/Materials Parts ------- > --- POWER (1) -------- (None) > --- PROPULSION (2) --- Backup Propulsion I Flight Unit > --- UTILITY (2) ------ Structural Scanner Backup Plating I > --- WEAPON (2) ------- Hammer > --- INVENTORY (5) ---- Hover Unit Flight Unit Disposable Heat Sink Particle Cannon Assault Rifle Peak State ------------ > --- POWER ------------ Backup Power I > --- PROPULSION ------- Backup Propulsion I Backup Propulsion I > --- UTILITY ---------- Structural Scanner Backup Plating I > --- WEAPON ----------- Hammer > --- INVENTORY -------- Hover Unit Flight Unit Disposable Heat Sink Particle Cannon Assault Rifle [Rating: 6] Favorites ----------- Power Light Ion Engine Engine Light Ion Engine Propulsion Aluminum Leg Leg Aluminum Leg Hover Unit Backup Propulsion I Flight Unit Flight Unit Utility Structural Scanner Device Structural Scanner Protection Backup Plating I Weapon Hammer Ballistic Gun Assault Rifle Impact Weapon Hammer Build | -11 -10 ------- Run | Yrd Mat Slots Evolved . | . . Power . | . . Propulsion . | . . Utility . | . . Weapon . | . . Parts Attached 9 | 3 6 Power 1 | 1 . Engine 1 | 1 . Core . | . . Reactor . | . . Propulsion 4 | 2 2 Treads . | . . Leg 2 | 2 . Wheel . | . . Hover . | . . Flight 2 | . 2 Utility 2 | . 2 Device 2 | . 2 Storage . | . . Processor . | . . Hackware . | . . Protection . | . . Artifact . | . . Weapon 2 | . 2 Energy Gun . | . . Energy Cannon . | . . Ballistic Gun 1 | . 1 Ballistic Cannon . | . . Launcher . | . . Special Weapon . | . . Impact Weapon 1 | . 1 Slashing Weapon . | . . Piercing Weapon . | . . Special Melee Weapon . | . . Unidentified Prototypes . | . . Parts Lost 6 | . 6 Power 2 | . 2 Propulsion 3 | . 3 Utility 1 | . 1 Weapon . | . . Highest Loss Streak 4 | . 4 To Critical Strikes . | . . Average Backups 2 | . 2 Power . | . . Propulsion 1 | . 1 Utility . | . . Weapon . | . . Tool/Special . | . . Unused Backups 3 | . 3 Power . | . . Propulsion 1 | . 1 Utility 1 | . 1 Weapon 1 | . 1 Tool/Special . | . . Average Slot Usage (%) 58 | . 58 Engine 9 | . 9 Leg 13 | . 13 Hover 7 | . 7 Flight 2 | . 2 Device 13 | . 13 Protection 4 | . 4 Impact Weapon 8 | . 8 Peak Build Rating 6 | 3 6 Average Rating 4 | 2 4 On Entrance 1 | . 3 Naked Turns . | . . Heaviest Build 5 | 3 5 Greatest Support 20 | 20 20 Greatest Overweight (x) . | . . Average Overweight (x) . | . . Largest Inventory Capacity 5 | 5 5 Average Capacity 5 | 5 5 Most Carried 5 | . 5 Average Carried 2 | . 2 Final Capacity 5 | 5 5 Final Carried 5 | . 5 Class Distribution -------------------- 100% | Mutant Dominant Class ---------------- Mutant | -10/Materials Resources | -11 -10 ----------- Run | Yrd Mat Matter Collected 275 | 230 45 Remotely . | . . Salvage Created 77 | . 77 Parts 5 | . 5 Haulers Intercepted . | . . Recyclers Shooed . | . . Parts Field Recycled . | . . Retrieved Matter . | . . Parts Self-Destructed . | . . Prevented . | . . Kills | -11 -10 ------- Run | Yrd Mat Combat Hostiles Destroyed 6 | . 6 Melee 5 | . 5 Classes Destroyed 1 | . 1 Swarmer 6 | . 6 Best Kill Streak 2 | . 2 Combat Bots Only 2 | . 2 Max Kills in Single Turn 1 | . 1 Gunslinging . | . . Exploded . | . . Melee 1 | . 1 Uniques/NPCs Destroyed . | . . Combat | -11 -10 -------- Run | Yrd Mat Hostile Shots Fired 131 | . 131 Missed 41 | . 41 Hits 90 | . 90 Projectile 90 | . 90 Damage Taken 743 | . 743 Core 258 | . 258 Absorbed by Shields . | . . Regen/Repaired (Parts) 18 | . 18 Core Remaining (%) 100 | 100 . Volleys Fired . | . . Largest . | . . Hottest . | . . Shots Fired . | . . Gun . | . . Cannon . | . . Launcher . | . . Special . | . . Kinetic . | . . Thermal . | . . Explosive . | . . Electromagnetic . | . . Robot Hit Streak . | . . Robot Miss Streak . | . . Penetration Max . | . . Secondary Targets . | . . Shots Hit Robots 13 | . 13 Core Hits 5 | . 5 Critical Kills 1 | . 1 Critical Parts Destroyed 1 | . 1 Critical Strikes 2 | . 2 Smash 2 | . 2 Melee Attacks 28 | . 28 Impact 28 | . 28 Slashing . | . . Piercing . | . . Sneak Attacks . | . . Combat Hostiles . | . . Follow-up Attacks . | . . Damage Inflicted 286 | . 286 Guns . | . . Cannons . | . . Explosions . | . . Melee 286 | . 286 Ramming . | . . Kinetic . | . . Thermal . | . . Explosive . | . . Electromagnetic . | . . Impact 286 | . 286 Slashing . | . . Piercing . | . . Highest Corruption . | . . Average Corruption . | . . Corruption Purged . | . . Corruption Blocked . | . . Overload Shots . | . . Overflow Damage 26 | . 26 Projectiles . | . . Explosions . | . . Melee 26 | . 26 Knockbacks 2 | . 2 Impact 2 | . 2 Kinetic . | . . Secondary . | . . Self-Inflicted Damage . | . . Shots . | . . Rammed . | . . Targets Rammed . | . . Kicked . | . . Crushed . | . . Highest Temperature . | . . Average Temperature . | . . Received Heat Transfer 36 | . 36 Siege Activations . | . . Martial Activations . | . . Shielding Activations . | . . Robots Disrupted . | . . Combat Hostiles . | . . Robots Corrupted 1 | . 1 Combat Hostiles 1 | . 1 Parts Fried . | . . Impact Corruptions 3 | . 3 Robots Melted . | . . Combat Hostiles . | . . Parts Melted . | . . Heat Transferred . | . . Parts Sabotaged . | . . Parts Stolen . | . . Parts Stripped . | . . Power Chain Reactions . | . . Alert | -11 -10 ------- Run | Yrd Mat Maximum Alert Level . | . . Low Security (%) 100 | 100 100 Level 1 . | . . Level 2 . | . . Level 3 . | . . Level 4 . | . . Level 5 . | . . High Security . | . . Max Security . | . . Peak Influence 40 | . 40 Initial . | . . Average 9 | . 11 Influence Increases 193 | . 193 Destroy 0b10 Robot/C 120 | . 120 Destroy Leader 20 | . 20 Successful Hack 8 | . 8 Disable Machine 15 | . 15 Lose Combat Pursuer 30 | . 30 Influence Decreases 163 | . 163 Time Decay 103 | . 103 Lost Part 60 | . 60 Squads Dispatched 1 | . 1 Investigation . | . . Extermination . | . . Reinforcement 1 | . 1 Assault . | . . Garrison . | . . Intercept . | . . Searches Triggered . | . . Construction Impeded . | . . Haulers Reinforced . | . . Active Scanning Responses . | . . Cargo Convoy Interrupts . | . . Stealth | -11 -10 --------- Run | Yrd Mat Distress Signals 1 | . 1 Communications Jammed . | . . Distress Signals . | . . Times Spotted 14 | . 14 Peak Tracking Total 6 | . 6 Tactical Retreats 1 | . 1 Traps | -11 -10 ------- Run | Yrd Mat Traps Triggered . | . . Indirectly . | . . Trap Hack Attempts . | . . Triggered . | . . Disarmed . | . . Reprogrammed . | . . Reused . | . . Traps Extracted . | . . Installed . | . . Triggered . | . . Machines | -11 -10 ---------- Run | Yrd Mat Machines Disabled 1 | . 1 Max in Single Turn 1 | . 1 Machines Repaired . | . . Machines Dismantled . | . . Machines Sabotaged . | . . Overloaded Fab Kills . | . . Hacking | -11 -10 --------- Run | Yrd Mat Machines Accessed 5 | . 5 Terminals 3 | . 3 Fabricators . | . . Repair Stations 1 | . 1 Recycling Units 1 | . 1 Scanalyzers . | . . Garrison Access . | . . Total Hacks 15 | . 15 Successful 9 | . 9 Failed 6 | . 6 Catastrophic 1 | . 1 Database Lockouts . | . . Manual 6 | . 6 Terminals 9 | . 9 Fabricators . | . . Repair Stations 3 | . 3 Recycling Units 3 | . 3 Scanalyzers . | . . Garrison Access . | . . Terminal Hacks 1 | . 1 Zone Layout 1 | . 1 Fabricator Hacks . | . . Repair Station Hacks 3 | . 3 Scan Component 1 | . 1 Repair 1 | . 1 Refit 1 | . 1 Recycling Unit Hacks 2 | . 2 Report Inventory 1 | . 1 Retrieve Components 1 | . 1 Scanalyzer . | . . Garrison Access Hacks . | . . Unauthorized Hacks 3 | . 3 Terminals 3 | . 3 Botnet 3 | . 3 Fabricators . | . . Repair Stations . | . . Recycling Units . | . . Scanalyzers . | . . Garrison Access . | . . Data Cores Recovered . | . . Used . | . . Hacking Detections 5 | . 5 Full Trace Events . | . . Feedback Events . | . . Feedback Blocked . | . . Robot Schematics Acquired . | . . Robots Built . | . . Authchips . | . . Time . | . . Total Robot Build Rating . | . . Part Schematics Acquired . | . . Parts Built . | . . Authchips . | . . Time . | . . Total Part Build Rating . | . . Parts Repaired 1 | . 1 Time 26 | . 26 Parts Recycled . | . . Recycled Matter . | . . Retrieved Matter . | . . Retrieved Components 2 | . 2 Parts Scanalyzed . | . . Part Schematics Acquired . | . . Parts Damaged . | . . Bothacking | -11 -10 ------------ Run | Yrd Mat Used RIF Installer . | . . Robots Hacked . | . . Non-combat . | . . Combat . | . . Robot Hacks Applied . | . . Relay Couplers Released . | . . Fabnet Peak Effective % . | . . Robots Rewired . | . . Allies Hacked . | . . Hacks Repelled . | . . Allies | -11 -10 -------- Run | Yrd Mat Total Allies . | . . Largest Group . | . . Highest-Rated Group . | . . Highest-Rated Ally . | . . Total Orders . | . . Ally Attacks . | . . Total Damage . | . . Kills . | . . Allies Corrupted . | . . Allies Melted . | . . Intel | -11 -10 ------- Run | Yrd Mat Active Infowar (turns) 304 | . 304 Structural 304 | . 304 Robot Analysis Total . | . . Derelict Logs Recovered . | . . Drone Launches . | . . Drone Recoveries . | . . Exploration | -11 -10 ------------- Run | Yrd Mat Turns Passed 453 | 57 396 Spaces Moved 428 | 61 367 Core 38 | 29 9 Treads . | . . Legs 157 | 32 125 Wheels . | . . Hover 83 | . 83 Flight 150 | . 150 Fastest Speed 40 | 50 40 Average Speed 77 | 86 75 Slowest Speed 120 | 120 120 Overloaded Moves . | . . Propulsion Burnouts . | . . Robots Hopped . | . . Potential Cave-ins . | . . Cave-ins Triggered . | . . Exploration Rate (%) 26 | 4 48 Regions Visited 1 Branch Regions . Pre-discovered Areas . | . . Known Exits Taken . | . . Unknown Exits Taken 1 | 1 . Scrap Searched . | . . Spaces Dug . | . . Terrain Destroyed . | . . Melee . | . . Projectile . | . . AOE . | . . Terrain Rammed . | . . Walls Destroyed . | . . Machines Disabled . | . . Actions | -11 -10 --------- Run | Yrd Mat Total 497 | 63 434 Wait 26 | . 26 Move 427 | 60 367 Hop . | . . Pick Up 4 | . 4 Fast Attach 9 | 3 6 Attach 1 | . 1 Detach 2 | . 2 Swap . | . . Drop . | . . Fire . | . . Melee 28 | . 28 Ram . | . . Kick . | . . Crush . | . . Escape Stasis . | . . Rewire . | . . Trap . | . . Miscellaneous . | . . Route ------- -11/Scrapyard -10/Materials History --------- Turn | Location | Event 7 | -11/Scrapyard | Discovered new exit (range 16) 58 | -11/Scrapyard | Entered Materials 248 | -10/Materials | Core integrity fell below 50% 282 | -10/Materials | Lost 4 parts (1p2n1u) 315 | -10/Materials | Build established: Mutant 358 | -10/Materials | Repaired Structural Scanner 442 | -10/Materials | Core integrity fell below 20% 454 | -10/Materials | Destroyed by G-34 Mercenary with Small Laser Last Messages --------------- Trojan loaded successfully. Testing... Terminal linked with 2 systems. Awaiting botnet instructions. O-16 Technician sends out distress signal. O-16 Technician: "IFF HANDSHAKE FAILED. SECURING TERMINAL." S-10 Pest destroyed. Acquired 18 matter. S-10 Pest suffers critical hit (Smash). S-10 Pest destroyed. Acquired 2 matter. S-10 Pest knocked back. ALERT: Hostiles spotted, dispatching reinforcements to Terminal M003. Backup Propulsion I destroyed. S-10 Pest destroyed. Backup Power I destroyed. S-10 Pest destroyed. Acquired Flight Unit. Map ----- +----------------------------------------------------+ | | | | | | | | | ?????????????????????????????????????????????????? | | ?????????????????????????????????????????????????? | | ?????????????????????????????????????????????????? | | ??????????????????????????????????????????????#### | | ??????????????????????????????#############?###### | | ??????????????????????????????############### | | ??????????????????????????????## """ #### "" | | ?????????????? ???????????????## "T" # # "" | | ???????????? # ######???????## # # "" | | ???????????? # ########?###### !!! + + | | ???????????? # ||= #?# # !!! # # "" | | ???????????? + |! #?# # !! # # "" | | ???????????? # |! #?# # # # "" | | ???????????? # #?# # ! ! # # | | ???????????? # #?# ########### ###### | | ?????????? # ### ########### ###### | | ??????????#### ### ########### ###??? | | ?????????? %+= # ##### ##??? | | ?????????????? "" [#[ # "" ##??? | | ?????????????? "T s*###### T ##??? | | ?????????????? "" g%%= ##### ####? | | ?????????? tg@% #####+########+######? | | ?????????? * ##! # ##? | | ??????????######## ## # """ """ ##? | | ??????????### ##* # """ """ ##? | | ???????????## ## [! # """ """ ##? | | ???????????## ## ! # ##? | | ???????????## ## # " " ! ##? | | ???????????## ###############+#### "R" ##? | | ???????????### ############### ### """ ##? | | ????????????## ##?????######## ##############? | | ????????????## ??? ##############? | | ?????????????????????########### ##????????????? | | ????????????????????############ ##????????????? | | ????????????????????## # #############?? | | ????????????????????## # #############?? | | ????????????????????## """ """ # ##?? | | ????????????????????## """ """ + ##?? | | ????????????????????## """ """ # ##?? | | ????????????????????## ####+#### ######?? | | ????????????????????## ### ## ######?? | | ????????????????????## ### " ## ##?????? | | ????????????????????#######+###### T ## ##?????? | | ????????????????????####### ###### " ## ##?????? | | ???????????????????????#### ###### ## ##?????? | | ???????????????????????####+###### + ######?? | +----------------------------------------------------+ Best States ------------- Heat Dissipation 25 Energy Generation 10 Energy Capacity 125 Matter Stores 300 Matter Capacity 300 Sight Range 16 Terrain Scan Density 10 Armor Coverage 80 Evasion (%) 62 Item Schematics ----------------- None Robot Schematics ------------------ None Fabricated ------------ Nothing Repaired ---------- Structural Scanner | 10% | -10/Materials Alien Tech Used ----------------- None Achievements -------------- None Challenges ------------ None Game ------ Seed StructuralRelayNanoactuators Manual? 0 Play Time 00:09:07 Cumulative 19.0 hours Start 2025.08.07 @ 21:37:55 End 2025.08.07 @ 21:43:02 Sessions 1 Manual Loads 0 Difficulty Rogue Special Mode None Game No. 25 Rogue 25 Adventurer 0 Explorer 0 Win Type - Total 0 Types 0/0/0/0/0/0/0/0/0/0 Lore% 24 Gallery% 21 Achievement% 22 Wizard Run 0 Options --------- Layout 1 ASCII 0 Keyboard 0 Movement Arrows Keybinds 0 Fullscreen 1 Font 16/SmallcapsGlow Map View 55x38 Zoom Use 0% Tactical HUD 0 Map Filters NONE Filters NONE Steam 1 RUN: ab547c91-9b88-4296-b4a6-c277e75ec758